bitfinex/quotes_BTCUSD_20240827
["timestamp","ask_amount","ask_price","bid_price","bid_amount"]
[1724727105889,0.27818707,63053.0,63052.0,0.01499279]
[1724727106122,2.00120648,63053.0,63052.0,0.01499279]
[1724727106322,2.15864648,63053.0,63052.0,0.000824]
[1724727106567,2.21964951,63053.0,63052.0,0.000824]
[1724727106770,2.18034951,63053.0,63052.0,0.000824]
[1724727106992,1.86315651,63053.0,63052.0,0.000824]
[1724727107188,1.79971651,63053.0,63052.0,0.000824]
[1724727107433,1.33446451,63053.0,63052.0,0.000824]
[1724727107629,1.34146451,63053.0,63052.0,0.000824]
[1724727108081,1.33646451,63053.0,63052.0,0.000824]
[1724727108383,1.34146451,63053.0,63052.0,0.000824]
[1724727108517,1.29991851,63053.0,63052.0,0.000824]
[1724727108717,1.30691851,63053.0,63052.0,0.000824]
[1724727109235,1.30685907,63053.0,63052.0,0.000824]
[1724727109594,1.11065907,63053.0,63052.0,0.000824]
[1724727112993,1.10565907,63053.0,63052.0,0.000824]
[1724727113199,0.79546607,63053.0,63052.0,0.000824]
[1724727113398,0.62099507,63053.0,63052.0,0.000824]
[1724727113712,0.62099507,63053.0,63052.0,0.07234716]
[1724727114037,0.93818807,63053.0,63052.0,0.07234716]
[1724727114266,0.93818807,63053.0,63052.0,0.01493497]
[1724727114386,0.92418807,63053.0,63052.0,0.01493497]
[1724727114850,0.93318807,63053.0,63052.0,0.01493497]
[1724727115009,0.94318807,63053.0,63052.0,0.01493497]
[1724727115194,0.93318807,63053.0,63052.0,0.01493497]
[1724727115591,1.579837,63053.0,63052.0,0.01493497]
[1724727115811,2.687036,63053.0,63052.0,0.000824]
[1724727116013,2.77623394,63053.0,63052.0,0.000824]
[1724727116213,2.76723394,63053.0,63052.0,0.000824]
[1724727116688,2.687036,63053.0,63052.0,0.000824]
[1724727117069,3.09342694,63053.0,63052.0,0.000824]
[1724727117276,3.004229,63053.0,63052.0,0.000824]
[1724727118846,2.992229,63053.0,63052.0,0.000824]
[1724727119043,3.006229,63053.0,63052.0,0.000824]
[1724727120273,2.997229,63053.0,63052.0,0.000824]
[1724727120644,3.009229,63053.0,63052.0,0.000824]
[1724727120776,3.072823,63053.0,63052.0,0.000824]
[1724727124238,2.047459,63053.0,63052.0,0.000824]
[1724727124440,0.554445,63053.0,63052.0,0.000824]
[1724727124625,0.63294113,63053.0,63052.0,0.28532619]
[1724727124822,0.808044,63053.0,63052.0,0.29953493]
[1724727125485,0.490851,63053.0,63052.0,0.29053274]
[1724727126251,0.63294113,63053.0,63052.0,0.29053274]
[1724727126742,0.6329797,63053.0,63052.0,0.29053274]
[1724727127140,0.4743837,63053.0,63052.0,0.48373274]
[1724727127339,0.332255,63053.0,63052.0,0.54102581]
[1724727128106,0.490851,63053.0,63052.0,0.54102581]
[1724727128456,0.332255,63053.0,63052.0,0.54102581]
[1724727128857,0.490851,63053.0,63052.0,0.54102581]
[1724727129584,0.332255,63053.0,63052.0,0.54102581]
[1724727130119,0.45066884,63053.0,63052.0,0.54102581]
[1724727130323,0.40212163,63053.0,63052.0,0.54102581]
[1724727130955,0.30738597,63053.0,63052.0,0.48373274]
[1724727131155,0.29538597,63053.0,63052.0,0.01503274]
[1724727131358,0.28138597,63053.0,63052.0,0.01503274]
[1724727131563,0.29038597,63053.0,63052.0,0.01503274]
[1724727132512,0.30138597,63053.0,63052.0,0.01503274]
[1724727133095,0.41079924,63053.0,63052.0,0.15260395]
[1724727133279,0.41079924,63053.0,63052.0,0.59539521]
[1724727133280,0.30038597,63053.0,63052.0,0.59539521]
[1724727133485,0.39512146,63053.0,63052.0,0.60961763]
[1724727134607,0.30038597,63053.0,63052.0,0.76821663]
[1724727136392,0.30038597,63053.0,63052.0,1.08541463]
[1724727138662,0.30038597,63053.0,63052.0,0.76821663]
[1724727138897,0.3477403,63053.0,63052.0,0.76821663]
[1724727139272,0.3477403,63053.0,63052.0,1.08541463]
[1724727139273,0.30038597,63053.0,63052.0,1.08541463]
[1724727139609,0.3477403,63053.0,63052.0,1.08541463]
[1724727140014,0.3477403,63053.0,63052.0,0.99621669]
[1724727140210,0.30038597,63053.0,63052.0,0.99621669]
[1724727140437,0.3477403,63053.0,63052.0,0.99621669]
[1724727140858,0.30038597,63053.0,63052.0,0.99621669]
[1724727141233,0.34772552,63053.0,63052.0,0.99621669]
[1724727141660,0.30038597,63053.0,63052.0,0.52041969]
[1724727141884,0.30038597,63053.0,63052.0,0.06341969]
[1724727142897,0.3713953,63053.0,63052.0,0.06341969]
[1724727143284,0.3713944,63053.0,63052.0,0.06341969]
[1724727143877,0.30038597,63053.0,63052.0,0.06341969]
[1724727144078,0.37139719,63053.0,63052.0,0.06341969]
[1724727145206,0.30038597,63053.0,63052.0,0.06341969]
[1724727145660,0.37139581,63053.0,63052.0,0.06341969]
[1724727145884,0.30038597,63053.0,63052.0,0.06341969]
[1724727146035,0.37139482,63053.0,63052.0,0.06341969]
[1724727146393,0.30038597,63053.0,63052.0,0.06341969]
[1724727146604,0.34772554,63053.0,63052.0,0.06341969]
[1724727146838,0.30038597,63053.0,63052.0,0.06341969]
[1724727147047,0.30038597,63053.0,63052.0,0.67901869]
[1724727147247,0.20038597,63053.0,63052.0,0.99621669]
[1724727148539,0.20038597,63053.0,63052.0,0.67901869]
[1724727149147,0.20038597,63053.0,63052.0,0.99621669]
[1724727151257,0.20038597,63053.0,63052.0,1.78920469]
[1724727151673,0.20038597,63053.0,63052.0,1.79382426]
[1724727151888,0.20038597,63053.0,63052.0,1.78911376]
[1724727152085,0.20038597,63053.0,63052.0,1.79382425]
[1724727152368,0.18138597,63053.0,63052.0,1.78911376]
[1724727152781,0.20038597,63053.0,63052.0,1.78911376]
[1724727153203,0.19238597,63053.0,63052.0,1.78911376]
[1724727153996,0.18138597,63053.0,63052.0,1.78911376]
[1724727154189,0.18338597,63053.0,63052.0,1.78911376]
[1724727154978,0.18338597,63053.0,63052.0,1.79378111]
[1724727155743,0.18338597,63053.0,63052.0,1.7890814]
[1724727159872,0.18338597,63053.0,63052.0,1.79378111]
[1724727160078,0.18338597,63053.0,63052.0,1.7890814]
[1724727162094,0.18338597,63053.0,63052.0,1.87824674]
[1724727163499,0.18338597,63053.0,63052.0,1.88291153]
[1724727168165,0.18338597,63053.0,63052.0,1.87822022]
[1724727168601,0.18338597,63053.0,63052.0,1.88290989]
[1724727168998,0.18338597,63053.0,63052.0,1.87821932]
[1724727169240,0.18338597,63053.0,63052.0,1.87671932]
[1724727169571,0.18338597,63053.0,63052.0,1.88140936]
[1724727171128,0.23072563,63053.0,63052.0,1.88140936]
[1724727173263,0.18338597,63053.0,63052.0,1.88140936]
[1724727175289,0.25439547,63053.0,63052.0,1.88140936]
[1724727178305,0.18338597,63053.0,63052.0,1.88140936]
[1724727178479,0.18338597,63053.0,63052.0,1.88223336]
[1724727178865,0.25446854,63053.0,63052.0,1.88223336]
[1724727179284,0.18338597,63053.0,63052.0,1.88223336]
[1724727180535,0.07517588,63053.0,63052.0,2.19943136]
[1724727180727,0.02778056,63053.0,63052.0,2.19943136]
[1724727182614,0.02578056,63053.0,63052.0,2.19943136]
[1724727184157,0.02578056,63053.0,63052.0,1.88223336]
[1724727184158,0.18195857,63053.0,63052.0,1.88223336]
[1724727184357,0.18195857,63053.0,63052.0,1.06033809]
[1724727184604,0.18295857,63053.0,63052.0,1.05662613]
[1724727184804,0.18295857,63053.0,63052.0,1.06127926]
[1724727188143,0.23034406,63053.0,63052.0,1.06127926]
[1724727195186,0.23034406,63053.0,63052.0,0.74408126]
[1724727195363,0.18295857,63053.0,63052.0,0.74408126]
[1724727195610,0.25403681,63053.0,63052.0,0.74408126]
[1724727195814,0.18295857,63053.0,63052.0,0.74408126]
[1724727196023,0.43775857,63053.0,63052.0,0.74408126]
[1724727199871,0.18295857,63053.0,63052.0,0.74408126]
[1724727201828,0.18276768,63053.0,63052.0,0.74408126]
[1724727203504,0.18276768,63053.0,63052.0,0.49631692]
[1724727203709,0.18276768,63053.0,63052.0,0.58548226]
[1724727208865,0.34136368,63053.0,63052.0,0.58548226]
[1724727209071,0.79056368,63053.0,63052.0,0.58548226]
[1724727209278,0.63196768,63053.0,63052.0,0.58548226]
[1724727209433,0.79056368,63053.0,63052.0,0.64403049]
[1724727210046,0.88533656,63053.0,63052.0,0.64403049]
[1724727210407,0.72674056,63053.0,63052.0,0.64403049]
[1724727213114,0.73574056,63053.0,63052.0,0.64303049]
[1724727213466,0.74274056,63053.0,63052.0,0.64303049]
[1724727214570,0.29354056,63053.0,63052.0,1.09673049]
[1724727214774,0.04258967,63053.0,63052.0,1.88972549]
[1724727214973,0.04258967,63053.0,63052.0,2.20692349]
[1724727216131,0.02558967,63053.0,63052.0,2.20692349]
[1724727216535,0.04058967,63053.0,63052.0,2.20692349]
[1724727216970,0.03458967,63053.0,63052.0,2.20692349]
[1724727217304,0.03558967,63053.0,63052.0,2.20692349]
[1724727217500,0.03858967,63053.0,63052.0,2.20692349]
[1724727217701,0.02558967,63053.0,63052.0,2.20692349]
[1724727218106,0.02558967,63053.0,63052.0,2.20792349]
[1724727219418,0.02558967,63053.0,63052.0,2.20692349]
[1724727219621,0.02758967,63053.0,63052.0,2.20792349]
[1724727219826,0.0029064,63053.0,63052.0,2.20792349]
[1724727220005,0.0019064,63053.0,63052.0,2.20692349]
[1724727220458,0.0029064,63053.0,63052.0,2.20792349]
[1724727221916,0.0029064,63053.0,63052.0,2.52512149]
[1724727223903,0.0029064,63053.0,63052.0,2.52612149]
[1724727224126,0.0009064,63068.0,63067.0,1.56363]
[1724727224327,0.0009064,63068.0,63067.0,2.16943085]
[1724727224563,0.0009064,63068.0,63067.0,2.18809198]
[1724727225683,0.0079064,63068.0,63067.0,2.18809198]
[1724727226093,0.0079064,63068.0,63067.0,2.50521498]
[1724727226294,0.0089064,63068.0,63067.0,2.50921498]
[1724727226718,0.0089064,63068.0,63067.0,2.51921498]
[1724727226719,0.0099064,63068.0,63067.0,2.51921498]
[1724727227073,0.0009064,63068.0,63067.0,2.50521498]
[1724727227249,0.0019064,63068.0,63067.0,2.50921498]
[1724727227452,0.0019064,63068.0,63067.0,2.52121498]
[1724727227453,0.0029064,63068.0,63067.0,2.52121498]
[1724727227796,0.0029064,63068.0,63067.0,2.5288375]
[1724727228202,0.0029064,63068.0,63067.0,2.52121498]
[1724727230588,0.0029064,63068.0,63067.0,0.79902298]
[1724727230589,0.34138441,63068.0,63067.0,0.79902298]
[1724727230733,0.34138441,63068.0,63067.0,1.11614598]
[1724727230954,0.34138441,63068.0,63067.0,1.43326898]
[1724727232262,0.15908441,63068.0,63067.0,1.43326898]
[1724727234047,0.15908441,63068.0,63067.0,1.88696898]
[1724727234442,0.15908441,63068.0,63067.0,1.43326898]
[1724727238422,0.0029064,63068.0,63067.0,1.43326898]
[1724727238627,0.0029064,63068.0,63067.0,1.66016898]
[1724727238831,0.0029064,63068.0,63067.0,1.97729198]
[1724727239446,0.0029064,63068.0,63067.0,2.15709198]
[1724727242843,0.0029064,63068.0,63067.0,1.75039198]
[1724727245514,0.15908441,63068.0,63067.0,1.11614598]
[1724727245911,0.39138441,63068.0,63067.0,1.11614598]
[1724727246102,0.39138441,63068.0,63067.0,0.79902298]
[1724727246315,0.57048441,63068.0,63067.0,0.78702298]
[1724727246519,0.56948441,63068.0,63067.0,0.78302298]
[1724727246723,0.56948441,63068.0,63067.0,0.78602298]
[1724727246940,0.56948441,63068.0,63067.0,0.78702298]
[1724727247142,0.56948441,63068.0,63067.0,0.78302298]
[1724727247366,0.56948441,63068.0,63067.0,1.10014598]
[1724727247568,0.56948441,63068.0,63067.0,1.10114598]
[1724727249000,0.56948441,63068.0,63067.0,0.78402298]
[1724727249245,0.56948441,63068.0,63067.0,0.78802298]
[1724727250229,0.56948441,63068.0,63067.0,1.10514598]
[1724727250642,0.15708441,63068.0,63067.0,1.10514598]
[1724727252161,0.15708441,63068.0,63067.0,1.01598064]
[1724727252361,0.15708441,63068.0,63067.0,1.10514598]
[1724727254231,0.15708441,63068.0,63067.0,1.42226898]
[1724727254806,0.15708441,63068.0,63067.0,1.59846898]
[1724727259324,0.15708441,63068.0,63067.0,1.91559198]
[1724727261516,0.15708441,63068.0,63067.0,1.73939198]
[1724727263366,0.38258441,63068.0,63067.0,1.65022664]
[1724727263520,0.38258441,63068.0,63067.0,1.73939198]
[1724727264526,0.15708441,63068.0,63067.0,1.73939198]
[1724727267981,0.15708441,63068.0,63067.0,1.91809198]
[1724727268568,0.0009064,63068.0,63067.0,1.91809198]
[1724727269363,0.0009064,63068.0,63067.0,2.43971498]
[1724727269572,0.04741025,63082.0,63081.0,0.158526]
[1724727269769,0.04741025,63082.0,63081.0,1.0053306]
[1724727269770,0.15617801,63082.0,63081.0,1.0053306]
[1724727269997,0.04741025,63086.0,63084.0,0.317037]
[1724727270313,0.29421538,63088.0,63084.0,0.317037]
[1724727270314,0.27051025,63088.0,63087.0,0.158511]
[1724727270479,0.48662051,63088.0,63087.0,0.158511]
[1724727270896,0.48662051,63088.0,63087.0,0.17694352]
[1724727270897,0.51032563,63088.0,63087.0,0.17694352]
[1724727271095,0.54797801,63088.0,63087.0,0.22227466]
[1724727271310,0.64797801,63088.0,63087.0,0.22227466]
[1724727271624,0.74275995,63088.0,63087.0,0.22227466]
[1724727271829,0.7427599,63088.0,63087.0,0.22227466]
[1724727272032,0.64797801,63088.0,63087.0,0.22227466]
[1724727272330,0.74275026,63088.0,63087.0,0.22227466]
[1724727272550,0.65397801,63088.0,63087.0,0.22227466]
[1724727273062,0.66197801,63088.0,63087.0,0.22327466]
[1724727274391,0.70933748,63088.0,63087.0,0.22327466]
[1724727274560,0.66197801,63088.0,63087.0,0.22327466]
[1724727274762,0.70933865,63088.0,63087.0,0.22327466]
[1724727275017,0.66197801,63088.0,63087.0,0.22327466]
[1724727275513,0.70933336,63088.0,63087.0,0.69880466]
[1724727275914,0.73304367,63088.0,63087.0,0.69880466]
[1724727276416,0.73300393,63088.0,63087.0,0.69880466]
[1724727277029,0.70932827,63088.0,63087.0,0.69880466]
[1724727278287,0.70932827,63088.0,63087.0,0.54029366]
[1724727278496,0.66197801,63088.0,63087.0,0.54029366]
[1724727280093,0.73299205,63088.0,63087.0,0.54029366]
[1724727280532,0.73299205,63088.0,63087.0,0.52186114]
[1724727280533,0.91518724,63088.0,63087.0,0.52186114]
[1724727280994,0.91518724,63088.0,63087.0,0.54019877]
[1724727281406,0.91516404,63088.0,63087.0,0.49486763]
[1724727281610,2.31111704,63088.0,63087.0,0.49486763]
[1724727281725,2.15367901,63088.0,63087.0,0.49486763]
[1724727281921,2.15367901,63088.0,63087.0,0.47653]
[1724727281922,2.47069601,63088.0,63087.0,0.47653]
[1724727284263,2.47160241,63088.0,63087.0,0.47653]
[1724727285051,2.61361449,63088.0,63087.0,0.47653]
[1724727285454,2.47160241,63088.0,63087.0,0.47653]
[1724727285765,2.77638141,63088.0,63087.0,0.47653]
[1724727286194,2.72690741,63088.0,63087.0,0.47653]
[1724727293439,2.31917241,63088.0,63087.0,0.47653]
[1724727293636,2.28443441,63088.0,63087.0,0.47653]
[1724727294012,2.4264571,63088.0,63087.0,0.47653]
[1724727294209,2.28443441,63088.0,63087.0,0.47653]
[1724727295823,2.31109537,63088.0,63087.0,0.47653]
[1724727296200,2.15906741,63088.0,63087.0,0.47653]
[1724727296401,2.06097441,63088.0,63087.0,0.47653]
[1724727300715,1.12840941,63088.0,63087.0,0.47653]
[1724727300857,1.12840941,63088.0,63087.0,0.49499838]
[1724727300858,1.20230541,63088.0,63087.0,0.49499838]
[1724727301283,0.80369441,63088.0,63087.0,0.49499838]
[1724727303773,1.12071141,63088.0,63087.0,0.49499838]
[1724727304189,1.43772841,63088.0,63087.0,0.47653]
[1724727304588,1.43772841,63088.0,63087.0,0.49497014]
[1724727304827,1.86694641,63088.0,63087.0,0.49497014]
[1724727305155,1.66799541,63088.0,63087.0,0.47653]
[1724727306930,1.66799541,63088.0,63087.0,0.49497014]
[1724727306931,1.84579541,63088.0,63087.0,0.49497014]
[1724727307250,1.84579541,63088.0,63087.0,0.47653]
[1724727311403,1.90935541,63088.0,63087.0,0.47653]
[1724727312206,2.051384,63088.0,63087.0,0.47653]
[1724727312557,1.90935541,63088.0,63087.0,0.47653]
[1724727315502,1.51808641,63088.0,63087.0,0.47653]
[1724727315811,3.36446241,63088.0,63087.0,0.47653]
[1724727315998,3.25862641,63088.0,63087.0,0.47653]
[1724727316321,2.92406641,63088.0,63087.0,0.47653]
[1724727317662,3.24108341,63088.0,63087.0,0.47653]
[1724727319212,3.14396941,63088.0,63087.0,0.47653]
[1724727319541,3.14396941,63088.0,63087.0,0.477353]
[1724727320941,3.13124541,63088.0,63087.0,0.477353]
[1724727321534,3.10580541,63088.0,63087.0,0.477353]
[1724727322172,2.58550141,63088.0,63087.0,0.477353]
[1724727322372,2.59336907,63088.0,63087.0,0.477353]
[1724727322978,2.75309944,63088.0,63087.0,0.477353]
[1724727323186,2.59336907,63088.0,63087.0,0.477353]
[1724727323387,2.75309944,63088.0,63087.0,0.477353]
[1724727324437,2.75309944,63088.0,63087.0,0.46807737]
[1724727324865,2.59336907,63088.0,63087.0,0.46807737]
[1724727325278,2.75309944,63088.0,63087.0,0.46807737]
[1724727329213,2.75311513,63088.0,63087.0,0.46807737]
[1724727330791,2.75311513,63088.0,63087.0,0.48652998]
[1724727333260,2.75311513,63088.0,63087.0,0.48552998]
[1724727333907,2.59336907,63088.0,63087.0,0.48552998]
[1724727334118,2.75308746,63088.0,63087.0,0.48552998]
[1724727334743,2.59336907,63088.0,63087.0,0.48552998]
[1724727334941,2.75308746,63088.0,63087.0,0.48552998]
[1724727336809,2.59336907,63088.0,63087.0,0.48552998]
[1724727336941,2.75308746,63088.0,63087.0,0.48552998]
[1724727338541,2.57528746,63088.0,63087.0,0.48552998]
[1724727339681,3.22203046,63088.0,63087.0,0.48552998]
[1724727339886,3.18203046,63088.0,63087.0,0.46707737]
[1724727340985,2.90515846,63088.0,63087.0,0.46707737]
[1724727341156,2.84371846,63088.0,63087.0,0.46707737]
[1724727341499,1.99320046,63088.0,63087.0,0.48552998]
[1724727341927,1.83348207,63088.0,63087.0,0.48552998]
[1724727342485,1.99320046,63088.0,63087.0,0.48552998]
[1724727342782,1.83348207,63088.0,63087.0,0.48552998]
[1724727345586,2.33890046,63088.0,63087.0,0.48552998]
[1724727345755,2.17918207,63088.0,63087.0,0.46707737]
[1724727346199,2.01238207,63088.0,63087.0,0.46707737]
[1724727346577,1.83348207,63088.0,63087.0,0.46707737]
[1724727350205,1.83348207,63088.0,63087.0,0.48552416]
[1724727351590,1.99320046,63088.0,63087.0,0.48552416]
[1724727351796,1.99327027,63088.0,63087.0,0.48552416]
[1724727354526,1.83348207,63088.0,63087.0,0.48552416]
[1724727355027,0.54834141,63088.0,63087.0,0.65732416]
[1724727355169,0.27108441,63088.0,63087.0,0.82152416]
[1724727355371,0.27108441,63088.0,63087.0,1.29705716]
[1724727355372,0.17108441,63088.0,63087.0,1.29705716]
[1724727355581,0.2184205,63088.0,63087.0,1.29705716]
[1724727355777,0.2184205,63088.0,63087.0,1.61407916]
[1724727355975,0.17108441,63088.0,63087.0,1.61407916]
[1724727357624,0.17108441,63088.0,63087.0,1.29705716]
[1724727359076,0.17108441,63088.0,63087.0,0.82152416]
[1724727359440,0.26580278,63088.0,63087.0,0.82152416]
[1724727359658,0.17108441,63088.0,63087.0,0.82152416]
[1724727364280,0.32959241,63088.0,63087.0,0.48552416]
[1724727364521,0.64660941,63088.0,63087.0,0.48552416]
[1724727364717,0.96362641,63088.0,63087.0,0.48552416]
[1724727364936,0.90592778,63088.0,63087.0,0.48552416]
[1724727366358,0.90192778,63088.0,63087.0,0.48552416]
[1724727366530,0.58491078,63088.0,63087.0,0.48552416]
[1724727367374,0.58491078,63088.0,63087.0,0.46707737]
[1724727367884,0.58491078,63088.0,63087.0,0.48536795]
[1724727370824,0.57516058,63088.0,63087.0,0.48536795]
[1724727372303,0.41665258,63088.0,63087.0,0.48536795]
[1724727376648,0.89196704,63088.0,63087.0,0.48536795]
[1724727376789,1.66530104,63088.0,63087.0,0.48536795]
[1724727376997,1.21447621,63088.0,63087.0,0.46707737]
[1724727377201,1.21447621,63088.0,63087.0,0.48541926]
[1724727377624,1.38472744,63088.0,63087.0,0.48541926]
[1724727378468,1.26659021,63088.0,63087.0,0.48541926]
[1724727378637,1.38472744,63088.0,63087.0,0.46707737]
[1724727378869,1.38472744,63088.0,63087.0,0.48541926]
[1724727380231,0.85499644,63088.0,63087.0,0.48541926]
[1724727380416,0.83137805,63088.0,63087.0,0.48541926]
[1724727380618,0.73685921,63088.0,63087.0,0.48541926]
[1724727380792,0.85499644,63088.0,63087.0,0.48541926]
[1724727382427,0.83134668,63088.0,63087.0,0.48541926]
[1724727384550,0.85499644,63088.0,63087.0,0.48541926]
[1724727384775,0.73685921,63088.0,63087.0,0.48541926]
[1724727386619,0.73685921,63088.0,63087.0,0.46707737]
[1724727386821,0.73685921,63088.0,63087.0,0.48544653]
[1724727388436,1.37073121,63088.0,63087.0,0.48544653]
[1724727388633,1.34528321,63088.0,63087.0,0.48544653]
[1724727388857,1.19318321,63088.0,63087.0,0.48544653]
[1724727389567,1.12961021,63088.0,63087.0,0.48544653]
[1724727390286,1.01181521,63088.0,63087.0,0.48544653]
[1724727392171,0.73685921,63088.0,63087.0,0.48544653]
[1724727392399,1.01181521,63088.0,63087.0,0.48544653]
[1724727399409,1.15364447,63088.0,63087.0,0.48544653]
[1724727399560,0.83930121,63088.0,63087.0,0.48544653]
[1724727402890,0.83930121,63088.0,63087.0,0.46707737]
[1724727403295,0.83930121,63088.0,63087.0,0.48545422]
[1724727403691,0.73685921,63088.0,63087.0,0.48545422]
[1724727404290,0.41984221,63088.0,63087.0,0.48545422]
[1724727404490,0.41984221,63088.0,63087.0,0.67668964]
[1724727404725,0.56169267,63088.0,63087.0,0.67668964]
[1724727406106,0.56169267,63088.0,63087.0,0.70865422]
[1724727406312,0.40318467,63088.0,63087.0,0.70865422]
[1724727406856,0.26133421,63088.0,63087.0,0.70865422]
[1724727410249,0.40318467,63088.0,63087.0,0.70865422]
[1724727411201,0.40334273,63088.0,63087.0,0.70865422]
[1724727417103,0.26133421,63088.0,63087.0,0.70865422]
[1724727417533,0.26133421,63088.0,63087.0,0.86716522]
[1724727417742,0.33235116,63088.0,63087.0,0.86716522]
[1724727417955,0.08592335,63088.0,63087.0,1.50120922]
[1724727418158,0.0149064,63088.0,63087.0,1.50120922]
[1724727418563,0.0149064,63088.0,63087.0,1.81823122]
[1724727418771,0.0089064,63088.0,63087.0,1.81823122]
[1724727418984,0.0009064,63088.0,63087.0,1.81823122]
[1724727419190,0.0059064,63088.0,63087.0,1.81823122]
[1724727419416,0.0139064,63088.0,63087.0,1.81923122]
[1724727419638,0.0089064,63088.0,63087.0,1.81823122]
[1724727419843,0.0089064,63088.0,63087.0,1.82823122]
[1724727419844,0.0099064,63088.0,63087.0,1.82823122]
[1724727420903,0.0756064,63092.0,63091.0,1.109507]
[1724727421107,0.0756064,63092.0,63091.0,1.41642801]
[1724727421343,0.0756064,63092.0,63091.0,1.91954475]
[1724727423141,0.0756064,63092.0,63091.0,1.92254475]
[1724727432323,0.0756064,63092.0,63091.0,2.24054675]
[1724727432552,0.0756064,63092.0,63091.0,2.26354675]
[1724727432987,0.0756064,63092.0,63091.0,2.27142024]
[1724727434310,0.0009064,63097.0,63096.0,1.647396]
[1724727434514,0.0009064,63097.0,63096.0,2.22126701]
[1724727434716,0.0009064,63097.0,63096.0,2.2393726]
[1724727434942,0.0009064,63097.0,63096.0,2.2623726]
[1724727435774,0.0009064,63097.0,63096.0,2.2643726]
[1724727435982,0.0009064,63097.0,63096.0,1.51829759]
[1724727436214,0.0009064,63097.0,63096.0,1.6074186]
[1724727441946,0.0009064,63097.0,63096.0,1.2904416]
[1724727442980,0.0009064,63097.0,63096.0,1.0704416]
[1724727443775,0.0009064,63097.0,63096.0,3.9704416]
[1724727452966,0.00071564,63097.0,63096.0,3.9704416]
[1724727456430,0.00071564,63097.0,63096.0,4.2874186]
[1724727458520,0.00071564,63097.0,63096.0,3.9704416]
[1724727458879,0.00071564,63097.0,63096.0,4.2874186]
[1724727459694,0.00071564,63097.0,63096.0,3.9704416]
[1724727460409,0.00071564,63097.0,63096.0,4.2874186]
[1724727460609,0.00071564,63097.0,63096.0,3.9704416]
[1724727462626,0.00071564,63097.0,63096.0,4.2874186]
[1724727463446,0.00071564,63097.0,63096.0,3.9704416]
[1724727463858,0.00071564,63097.0,63096.0,4.4161186]
[1724727465688,0.00071564,63097.0,63096.0,4.5164186]
[1724727465860,0.00071564,63097.0,63096.0,4.8333956]
[1724727466115,0.00071564,63097.0,63096.0,4.52421955]
[1724727466318,0.00071564,63097.0,63096.0,4.84119655]
[1724727466519,0.00071564,63097.0,63096.0,4.52421955]
[1724727466734,0.00071564,63097.0,63096.0,4.5164186]
[1724727469717,0.00071564,63097.0,63096.0,4.8333956]
[1724727471922,0.00071564,63097.0,63096.0,4.8342196]
[1724727476193,0.00071564,63097.0,63096.0,4.74509859]
[1724727476354,0.00071564,63097.0,63096.0,4.8342196]
[1724727478119,0.00071564,63097.0,63096.0,4.19912159]
[1724727478318,0.00071564,63097.0,63096.0,4.2882426]
[1724727480218,0.00071564,63097.0,63096.0,4.4005426]
[1724727480404,0.00071564,63097.0,63096.0,4.4969426]
[1724727481797,0.00071564,63097.0,63096.0,4.2882426]
[1724727482686,0.00071564,63097.0,63096.0,4.6052196]
[1724727483840,0.00071564,63097.0,63096.0,4.8139196]
[1724727485019,0.00071564,63097.0,63096.0,4.19912159]
[1724727485217,0.00071564,63097.0,63096.0,3.88214459]
[1724727485421,0.00071564,63097.0,63096.0,4.19912159]
[1724727486400,0.00071564,63097.0,63096.0,4.29552159]
[1724727487026,0.00071564,63097.0,63096.0,4.19912159]
[1724727494808,0.00071564,63097.0,63096.0,3.9712656]
[1724727494809,0.22181564,63097.0,63096.0,3.9712656]
[1724727496774,0.12531564,63097.0,63096.0,3.9712656]
[1724727497519,0.12531564,63097.0,63096.0,3.9713406]
[1724727497838,0.00071564,63097.0,63096.0,3.9713406]
[1724727499964,0.00071564,63097.0,63096.0,4.2883176]
[1724727500382,0.00071564,63097.0,63096.0,3.9713406]
[1724727500788,0.00071564,63097.0,63096.0,4.2883176]
[1724727500989,0.00071564,63097.0,63096.0,3.9713406]
[1724727501538,0.00071564,63097.0,63096.0,4.2883176]
[1724727502468,0.00071564,63097.0,63096.0,3.9713406]
[1724727504729,0.00071564,63097.0,63096.0,4.2883176]
[1724727504931,0.00071564,63097.0,63096.0,4.4051176]
[1724727506525,0.00071564,63097.0,63096.0,4.5041176]
[1724727506723,0.00071564,63097.0,63096.0,4.8210946]
[1724727507121,0.00071564,63097.0,63096.0,4.5041176]
[1724727508371,0.00071564,63097.0,63096.0,4.8210946]
[1724727509158,0.00071564,63097.0,63096.0,4.5041176]
[1724727509579,0.00071564,63097.0,63096.0,4.8210946]
[1724727509755,0.00071564,63097.0,63096.0,4.5041176]
[1724727510764,0.00071564,63097.0,63096.0,4.8210946]
[1724727512192,0.00071564,63097.0,63096.0,4.5041176]
[1724727512764,0.00071564,63097.0,63096.0,4.8210946]
[1724727520364,0.0255625,63097.0,63096.0,4.8210946]
[1724727524189,0.0255625,63097.0,63096.0,4.8190946]
[1724727524588,0.0255625,63097.0,63096.0,5.1680716]
[1724727525010,0.0265625,63097.0,63096.0,5.1750716]
[1724727525217,0.0255625,63097.0,63096.0,5.1680716]
[1724727525592,0.0265625,63097.0,63096.0,5.1770716]
[1724727525787,0.0265625,63097.0,63096.0,5.1680716]
[1724727526238,0.0265625,63097.0,63096.0,5.1790716]
[1724727527474,0.07214658,63113.0,63107.0,0.2164]
[1724727527675,0.14729992,63113.0,63112.0,0.56446501]
[1724727527852,0.04729992,63114.0,63113.0,0.475336]
[1724727528053,0.31917793,63114.0,63113.0,1.276847]
[1724727528263,0.41917793,63114.0,63113.0,1.276847]
[1724727528615,0.41917793,63114.0,63113.0,1.29484725]
[1724727528822,0.41917793,63114.0,63113.0,1.37271099]
[1724727529138,0.41917793,63114.0,63113.0,1.36971099]
[1724727529343,0.38087801,63114.0,63113.0,1.37071099]
[1724727529968,0.38387801,63114.0,63113.0,1.37171099]
[1724727530167,0.38387801,63114.0,63113.0,1.37071099]
[1724727530168,0.37487801,63114.0,63113.0,1.37071099]
[1724727530407,0.37187801,63114.0,63113.0,1.36971099]
[1724727530577,0.37987801,63114.0,63113.0,1.37071099]
[1724727530798,0.38287801,63114.0,63113.0,1.37071099]
[1724727531243,0.38287801,63114.0,63113.0,1.05381999]
[1724727531958,0.37187801,63114.0,63113.0,1.05281999]
[1724727532162,0.37887801,63114.0,63113.0,1.05381999]
[1724727532566,0.37887801,63114.0,63113.0,1.05281999]
[1724727532772,0.38487801,63114.0,63113.0,1.05281999]
[1724727533577,0.37187801,63114.0,63113.0,1.05281999]
[1724727533979,0.37487801,63114.0,63113.0,1.05281999]
[1724727536336,0.27487801,63114.0,63113.0,1.05281999]
[1724727541348,0.27487801,63114.0,63113.0,3.95281999]
[1724727541754,0.27578441,63114.0,63113.0,3.95281999]
[1724727542976,0.16008441,63114.0,63113.0,3.95281999]
[1724727544507,0.16008441,63114.0,63113.0,4.26971099]
[1724727545026,0.16008441,63114.0,63113.0,3.95281999]
[1724727545523,0.37968441,63114.0,63113.0,3.95281999]
[1724727547794,0.37968441,63114.0,63113.0,3.40262025]
[1724727547997,0.53812741,63114.0,63113.0,3.40262025]